[Event "Irish New Year-IM 2022"]
[Site "Dublin"]
[Date "2022.01.03"]
[Round "3.9"]
[White "Mannion, Stephen R"]
[Black "Melaugh, Shane"]
[Result "1-0"]
[ECO "C41"]
[WhiteElo "2267"]
[BlackElo "2192"]
[Annotator "ChessBase"]
[PlyCount "69"]
[EventDate "2022.01.02"]
[EventType "tourn"]
[EventCountry "IRL"]
[SourceTitle "playchess.com"]
[Source "ChessBase"]
[SourceQuality "1"]
[TimeControl "5400+30"]

1. e4 {[%emt 0:00:02]} d6 {[%emt 0:00:05]} 2. d4 {[%emt 0:00:06]} Nf6 {[%emt 0:00:03]} 3. Nc3 {[%emt 0:00:06]} Nbd7 {[%emt 0:00:02]} 4. Nf3 {[%emt 0:00:14]} e5 {[%emt 0:00:05]} 5. Bc4 {[%emt 0:00:15]} Be7 {[%emt 0:00:07]} 6. O-O {[%emt 0:00:19]} c6 {[%emt 0:00:03]} 7. a4 {[%emt 0:00:14]} h6 {[%emt 0:00:05]} 8. a5 {[%emt 0:00:41]} Qc7 {[%emt 0:00:04]} 9. Qe2 {[%emt 0:00:42]} Nf8 {[%emt 0:00:06]} 10. d5 {[%emt 0:00:58]} Ng6 {[%emt 0:03:02]} 11. Bb3 {[%emt 0:00:59]} O-O {[%emt 0:06:46]} 12. a6 {[%emt 0:01:59]} bxa6 {[%emt 0:00:31]} 13. dxc6 {[%emt 0:01:08]} Qxc6 {[%emt 0:00:51]} 14. Nd5 {[%emt 0:00:59]} Bb7 {[%emt 0:00:32]} 15. Nh4 {[%emt 0:10:34]} Qd7 {[%emt 0:14:03]} 16. Nxg6 {[%emt 0:05:28]} Bxd5 {[%emt 0:00:17]} 17. Nxe7+ {[%emt 0:00:28]} Qxe7 {[%emt 0:00:06]} 18. Bxd5 {[%emt 0:00:16]} Nxd5 {[%emt 0:00:06]} 19. exd5 {[%emt 0:00:05]} f5 {[%emt 0:00:03]} 20. Rxa6 {[%emt 0:03:58]} f4 {[%emt 0:00:08]} 21. f3 {[%emt 0:00:31]} Rf5 {[%emt 0:00:10]} 22. c4 {[%emt 0:01:06]} Rh5 {[%emt 0:00:07]} 23. Qf2 {[%emt 0:04:23]} Rf8 {[%emt 0:00:21]} 24. Rxa7 {[%emt 0:00:40]} Qg5 {[%emt 0:00:10]} 25. b4 {[%emt 0:05:06]} Qf5 {[%emt 0:00:04]} 26. c5 {[%emt 0:02:25]} Qd3 {[%emt 0:00:13]} 27. cxd6 {[%emt 0:01:46]} Qxd5 {[%emt 0:00:04]} 28. Qc5 {[%emt 0:01:11]} Qd3 {[%emt 0:00:30]} 29. Ra3 {[%emt 0:03:25]} Qg6 {[%emt 0:00:15]} 30. Qd5+ {[%emt 0:01:27]} Kh8 {[%emt 0:00:12]} 31. Ra8 {[%emt 0:02:54]} Rxa8 {[%emt 0:00:35]} 32. Qxa8+ {[%emt 0:00:06]} Kh7 {[%emt 0:00:02]} 33. d7 {[%emt 0:02:26]} Qb6+ {[%emt 0:00:36]} 34. Kh1 {[%emt 0:00:52]} Qb5 {[%emt 0:00:21]} 35. Rd1 {[%emt 0:01:02]} 1-0

[Event "Irish New Year-IM 2022"]
[Site "Dublin"]
[Date "2022.01.04"]
[Round "4.6"]
[White "Baker, Chris W"]
[Black "Carroll, Peter"]
[Result "1-0"]
[ECO "A14"]
[WhiteElo "2227"]
[BlackElo "2139"]
[Annotator "ChessBase"]
[PlyCount "81"]
[EventDate "2022.01.02"]
[EventType "tourn"]
[EventCountry "IRL"]
[SourceTitle "playchess.com"]
[Source "ChessBase"]
[SourceQuality "1"]
[TimeControl "5400+30"]

1. d4 {[%emt 0:00:04]} Nf6 {[%emt 0:01:44]} 2. Nf3 {[%emt 0:00:22]} e6 {[%emt 0:00:08]} 3. g3 {[%emt 0:02:32]} b6 {[%emt 0:00:10]} 4. Bg2 {[%emt 0:00:49]} Bb7 {[%emt 0:00:07]} 5. O-O {[%emt 0:00:34]} Be7 {[%emt 0:00:06]} 6. b3 {[%emt 0:04:58]} O-O {[%emt 0:00:15]} 7. Bb2 {[%emt 0:00:35]} c5 {[%emt 0:03:47]} 8. c4 {[%emt 0:06:34]} d5 {[%emt 0:01:38]} 9. cxd5 {[%emt 0:03:55]} Nxd5 {[%emt 0:02:08]} 10. dxc5 {[%emt 0:00:36]} Bxc5 {[%emt 0:00:07]} 11. Nbd2 {[%emt 0:03:29]} Nd7 {[%emt 0:02:19]} 12. Rc1 {[%emt 0:05:08]} Rc8 {[%emt 0:12:47]} 13. a3 {[%emt 0:06:51]} a5 {[%emt 0:08:27]} 14. Nc4 {[%emt 0:03:13]} Qe7 {[%emt 0:02:10]} 15. Qd3 {[%emt 0:04:56]} Rfd8 {[%emt 0:13:48]} 16. Qb1 {[%emt 0:01:55]} Nb8 {[%emt 0:16:46]} 17. h4 {[%emt 0:04:34]} h6 {[%emt 0:02:05]} 18. Qa1 {[%emt 0:11:30]} Nf6 {[%emt 0:00:29]} 19. Bh3 {[%emt 0:05:59]} Nc6 {[%emt 0:07:14]} 20. Kh2 {[%emt 0:03:06]} b5 {[%emt 0:04:06]} 21. Ncd2 {[%emt 0:04:34]} Bb6 {[%emt 0:01:38]} 22. Bxf6 {[%emt 0:04:01]} gxf6 {[%emt 0:02:17]} 23. Ne4 {[%emt 0:04:15]} Nd4 {[%emt 0:02:00]} 24. Rxc8 {[%emt 0:01:03]} Bxc8 {[%emt 0:01:18]} 25. Nxd4 {[%emt 0:01:26]} Bxd4 {[%emt 0:00:08]} 26. Qc1 {[%emt 0:02:20]} Bb7 {[%emt 0:03:56]} 27. Bg2 {[%emt 0:00:43]} Kg7 {[%emt 0:01:00]} 28. e3 {[%emt 0:00:46]} Bb6 {[%emt 0:01:20]} 29. Qb2 {[%emt 0:01:04]} Bd5 {[%emt 0:00:57]} 30. Rc1 {[%emt 0:02:17]} Rd7 {[%emt 0:04:31]} 31. Rc8 {[%emt 0:01:51]} Bb7 {[%emt 0:01:28]} 32. Nxf6 {[%emt 0:01:18]} Bd4 {[%emt 0:02:26]} 33. Nh5+ {[%emt 0:02:13]} Kg6 {[%emt 0:02:21]} 34. Qc2+ {[%emt 0:00:35]} Kxh5 {[%emt 0:00:21]} 35. Bxb7 {[%emt 0:01:49]} Rxb7 {[%emt 0:00:06]} 36. Qe2+ {[%emt 0:00:26]} Kg6 {[%emt 0:00:06]} 37. Qg4+ {[%emt 0:00:13]} Kf6 {[%emt 0:00:05]} 38. Qf4+ {[%emt 0:01:34]} Kg7 {[%emt 0:00:10]} 39. Qxd4+ {[%emt 0:00:07]} e5 {[%emt 0:00:38]} 40. Qg4+ {[%emt 0:00:12]} Kf6 {[%emt 0:00:04]} 41. Rc6+ {[%emt 0:00:12]} 1-0

[Event "Irish New Year-IM 2022"]
[Site "Dublin"]
[Date "2022.01.04"]
[Round "4.8"]
[White "Daly, Colm"]
[Black "Mannion, Stephen R"]
[Result "1-0"]
[ECO "A12"]
[WhiteElo "2285"]
[BlackElo "2267"]
[Annotator "ChessBase"]
[PlyCount "105"]
[EventDate "2022.01.02"]
[EventType "tourn"]
[EventCountry "IRL"]
[SourceTitle "playchess.com"]
[Source "ChessBase"]
[SourceQuality "1"]
[TimeControl "5400+30"]

1. Nf3 {[%emt 0:16:50]} d5 {[%emt 0:00:11]} 2. g3 {[%emt 0:00:06]} Nf6 {[%emt 0:00:11]} 3. Bg2 {[%emt 0:00:06]} c6 {[%emt 0:00:12]} 4. O-O {[%emt 0:00:09]} Bf5 {[%emt 0:00:13]} 5. b3 {[%emt 0:00:06]} e6 {[%emt 0:00:38]} 6. Bb2 {[%emt 0:00:08]} h6 {[%emt 0:00:11]} 7. c4 {[%emt 0:00:08]} Be7 {[%emt 0:00:33]} 8. d3 {[%emt 0:00:07]} O-O {[%emt 0:00:29]} 9. Nbd2 {[%emt 0:00:04]} Nbd7 {[%emt 0:01:22]} 10. a3 {[%emt 0:00:15]} a5 {[%emt 0:00:11]} 11. Ra2 {[%emt 0:00:05]} Bh7 {[%emt 0:03:22]} 12. Qa1 {[%emt 0:00:06]} Re8 {[%emt 0:08:01]} 13. Ne5 {[%emt 0:05:21]} Nxe5 {[%emt 0:00:40]} 14. Bxe5 {[%emt 0:00:05]} Bd6 {[%emt 0:00:29]} 15. Rc1 {[%emt 0:07:00]} Bxe5 {[%emt 0:06:31]} 16. Qxe5 {[%emt 0:00:06]} Qb6 {[%emt 0:13:45]} 17. h3 {[%emt 0:28:01]} c5 {[%emt 0:15:21]} 18. Qa1 {[%emt 0:03:05]} d4 {[%emt 0:19:17]} 19. b4 {[%emt 0:00:50]} axb4 {[%emt 0:10:07]} 20. Rb1 {[%emt 0:00:16]} Ra4 {[%emt 0:12:51]} 21. axb4 {[%emt 0:01:32]} Rxb4 {[%emt 0:00:06]} 22. Rab2 {[%emt 0:03:49]} Rxb2 {[%emt 0:01:49]} 23. Rxb2 {[%emt 0:00:08]} Qa6 {[%emt 0:00:13]} 24. Qxa6 {[%emt 0:04:39]} bxa6 {[%emt 0:00:02]} 25. Rb6 {[%emt 0:00:12]} Kf8 {[%emt 0:01:19]} 26. Bc6 {[%emt 0:00:42]} Rc8 {[%emt 0:00:21]} 27. Nb3 {[%emt 0:00:58]} Ke7 {[%emt 0:00:54]} 28. Rxa6 {[%emt 0:02:32]} Nd7 {[%emt 0:02:52]} 29. Bxd7 {[%emt 0:00:42]} Kxd7 {[%emt 0:00:01]} 30. Ra7+ {[%emt 0:00:10]} Ke8 {[%emt 0:02:15]} 31. Ra5 {[%emt 0:00:09]} Rb8 {[%emt 0:00:21]} 32. Nxc5 {[%emt 0:00:12]} Rb2 {[%emt 0:00:20]} 33. Kf1 {[%emt 0:01:51]} h5 {[%emt 0:00:07]} 34. f3 {[%emt 0:01:13]} Bf5 {[%emt 0:00:14]} 35. g4 {[%emt 0:00:13]} hxg4 {[%emt 0:00:03]} 36. hxg4 {[%emt 0:00:07]} Bg6 {[%emt 0:00:05]} 37. Rb5 {[%emt 0:01:34]} Rxb5 {[%emt 0:02:47]} 38. cxb5 {[%emt 0:00:08]} Ke7 {[%emt 0:00:11]} 39. b6 {[%emt 0:01:42]} Kd6 {[%emt 0:00:01]} 40. Kf2 {[%emt 0:01:44]} e5 {[%emt 0:00:47]} 41. b7 {[%emt 0:00:17]} Kc7 {[%emt 0:00:01]} 42. Nd7 {[%emt 0:00:42]} Kxb7 {[%emt 0:00:25]} 43. Nxe5 {[%emt 0:00:06]} Bh7 {[%emt 0:01:34]} 44. Nxf7 {[%emt 0:00:11]} Kc7 {[%emt 0:00:05]} 45. f4 {[%emt 0:00:12]} Bg8 {[%emt 0:00:08]} 46. Ne5 {[%emt 0:01:04]} Kd6 {[%emt 0:00:04]} 47. Nf3 {[%emt 0:00:20]} Kd5 {[%emt 0:00:10]} 48. Kg3 {[%emt 0:00:07]} Be6 {[%emt 0:00:45]} 49. f5 {[%emt 0:00:20]} Bd7 {[%emt 0:00:09]} 50. Kf4 {[%emt 0:00:06]} Ba4 {[%emt 0:00:36]} 51. g5 {[%emt 0:01:20]} Bd1 {[%emt 0:00:58]} 52. Ng1 {[%emt 0:00:58]} Bb3 {[%emt 0:00:37]} 53. g6 {[%emt 0:00:36]} 1-0

[Event "Irish New Year-IM 2022"]
[Site "Dublin"]
[Date "2022.01.04"]
[Round "4.10"]
[White "Wafa, Shrook"]
[Black "O`Donnell, Conor"]
[Result "1/2-1/2"]
[ECO "C15"]
[WhiteElo "2173"]
[BlackElo "2310"]
[Annotator "ChessBase"]
[PlyCount "100"]
[EventDate "2022.01.02"]
[EventType "tourn"]
[EventCountry "IRL"]
[SourceTitle "playchess.com"]
[Source "ChessBase"]
[SourceQuality "1"]
[TimeControl "5400+30"]

1. e4 {[%emt 0:00:04]} e6 {[%emt 0:00:18]} 2. d4 {[%emt 0:00:12]} d5 {[%emt 0:00:10]} 3. Nc3 {[%emt 0:00:11]} Bb4 {[%emt 0:00:53]} 4. Nge2 {[%emt 0:00:25]} dxe4 {[%emt 0:00:54]} 5. a3 {[%emt 0:00:12]} Bxc3+ {[%emt 0:01:43]} 6. Nxc3 {[%emt 0:00:11]} Nc6 {[%emt 0:00:13]} 7. Bb5 {[%emt 0:00:43]} Nge7 {[%emt 0:00:33]} 8. Nxe4 {[%emt 0:01:11]} O-O {[%emt 0:00:42]} 9. Bxc6 {[%emt 0:03:56]} Nxc6 {[%emt 0:00:12]} 10. c3 {[%emt 0:00:38]} e5 {[%emt 0:01:15]} 11. d5 {[%emt 0:03:35]} Ne7 {[%emt 0:00:05]} 12. c4 {[%emt 1:25:12]} f5 {[%emt 0:01:19]} 13. Nc3 {[%emt 0:00:00]} f4 {[%emt 0:00:26]} 14. Qe2 {[%emt 0:00:00]} Nf5 {[%emt 0:03:41]} 15. O-O {[%emt 0:00:00]} Qe7 {[%emt 0:16:48]} 16. Re1 {[%emt 0:00:00]} Nd4 {[%emt 0:03:12]} 17. Qxe5 {[%emt 0:00:00]} Qxe5 {[%emt 0:00:46]} 18. Rxe5 {[%emt 0:00:00]} Nb3 {[%emt 0:01:15]} 19. Rb1 {[%emt 0:00:00]} Bf5 {[%emt 0:01:34]} 20. Rxf5 {[%emt 0:00:00]} Rxf5 {[%emt 0:00:24]} 21. f3 {[%emt 0:00:00]} g5 {[%emt 0:05:44]} 22. Ne4 {[%emt 0:00:00]} Re5 {[%emt 0:03:35]} 23. g3 {[%emt 0:00:00]} Rxe4 {[%emt 0:09:15]} 24. fxe4 {[%emt 0:00:00]} Re8 {[%emt 0:00:16]} 25. gxf4 {[%emt 0:00:00]} Rxe4 {[%emt 0:01:29]} 26. fxg5 {[%emt 0:00:00]} Re1+ {[%emt 0:00:15]} 27. Kf2 {[%emt 0:00:00]} Rxc1 {[%emt 0:01:42]} 28. Rxc1 {[%emt 0:00:00]} Nxc1 {[%emt 0:00:07]} 29. Ke3 {[%emt 0:00:00]} Nb3 {[%emt 0:01:47]} 30. h4 {[%emt 0:00:00]} a5 {[%emt 0:04:19]} 31. h5 {[%emt 0:00:00]} a4 {[%emt 0:01:49]} 32. Kd3 {[%emt 0:00:00]} Nc5+ {[%emt 0:01:57]} 33. Kc3 {[%emt 0:00:00]} Ne4+ {[%emt 0:04:41]} 34. Kb4 {[%emt 0:00:00]} Nxg5 {[%emt 0:00:10]} 35. Kxa4 {[%emt 0:00:00]} Kf7 {[%emt 0:03:00]} 36. Kb5 {[%emt 0:00:00]} Ne4 {[%emt 0:05:48]} 37. c5 {[%emt 0:00:00]} Kf6 {[%emt 0:05:21]} 38. a4 {[%emt 0:00:00]} Ke5 {[%emt 0:02:01]} 39. d6 {[%emt 0:00:00]} cxd6 {[%emt 0:01:02]} 40. c6 {[%emt 0:00:00]} bxc6+ {[%emt 0:00:09]} 41. Kxc6 {[%emt 0:00:00]} Nc5 {[%emt 0:06:14]} 42. a5 {[%emt 0:00:00]} Na6 {[%emt 0:00:40]} 43. Kb6 {[%emt 0:00:00]} Nb4 {[%emt 0:02:15]} 44. a6 {[%emt 0:00:00]} Nxa6 {[%emt 0:01:02]} 45. Kxa6 {[%emt 0:00:00]} d5 {[%emt 0:00:27]} 46. b4 {[%emt 0:00:00]} d4 {[%emt 0:00:18]} 47. b5 {[%emt 0:00:00]} d3 {[%emt 0:00:06]} 48. b6 {[%emt 0:00:00]} d2 {[%emt 0:00:02]} 49. b7 {[%emt 0:00:00]} d1=Q {[%emt 0:00:06]} 50. b8=Q+ {[%emt 0:00:00]} Qd6+ {[%emt 0:02:34]} 1/2-1/2

[Event "Irish New Year-IM 2022"]
[Site "Dublin"]
[Date "2022.01.05"]
[Round "7.6"]
[White "Wall, Tim P"]
[Black "Baker, Chris W"]
[Result "1/2-1/2"]
[ECO "C06"]
[WhiteElo "2256"]
[BlackElo "2227"]
[Annotator "ChessBase"]
[PlyCount "80"]
[EventDate "2022.01.02"]
[EventType "tourn"]
[EventCountry "IRL"]
[SourceTitle "playchess.com"]
[Source "ChessBase"]
[SourceQuality "1"]
[TimeControl "5400+30"]

1. e4 {[%emt 0:01:45]} c5 {[%emt 0:02:04]} 2. Nf3 {[%emt 0:00:48]} d6 {[%emt 0:02:34]} 3. c3 {[%emt 0:03:30]} Nf6 {[%emt 0:01:19]} 4. Be2 {[%emt 0:00:11]} e6 {[%emt 0:02:11]} 5. O-O {[%emt 0:00:39]} Be7 {[%emt 0:01:13]} 6. Re1 {[%emt 0:00:43]} O-O {[%emt 0:01:21]} 7. Bf1 {[%emt 0:00:41]} Nc6 {[%emt 0:02:03]} 8. d4 {[%emt 0:00:55]} d5 {[%emt 0:03:01]} 9. e5 {[%emt 0:03:07]} Ne4 {[%emt 0:01:15]} 10. Nbd2 {[%emt 0:01:43]} f5 {[%emt 0:06:41]} 11. exf6 {[%emt 0:06:10]} Nxf6 {[%emt 0:02:59]} 12. Bd3 {[%emt 0:00:32]} cxd4 {[%emt 0:00:53]} 13. cxd4 {[%emt 0:00:10]} Bd6 {[%emt 0:01:42]} 14. Nb3 {[%emt 0:06:28]} Qc7 {[%emt 0:12:33]} 15. Qe2 {[%emt 0:02:48]} Bd7 {[%emt 0:10:05]} 16. Ne5 {[%emt 0:05:22]} Rae8 {[%emt 0:06:52]} 17. Bg5 {[%emt 0:03:07]} Bc8 {[%emt 0:08:00]} 18. Rac1 {[%emt 0:02:01]} a6 {[%emt 0:04:33]} 19. a3 {[%emt 0:20:08]} Bxe5 {[%emt 0:06:25]} 20. dxe5 {[%emt 0:02:16]} Ne4 {[%emt 0:00:27]} 21. Bxe4 {[%emt 0:08:29]} dxe4 {[%emt 0:01:12]} 22. Qxe4 {[%emt 0:01:19]} Rf5 {[%emt 0:00:29]} 23. Be3 {[%emt 0:17:00]} Qxe5 {[%emt 0:01:13]} 24. Qc2 {[%emt 0:01:48]} Rh5 {[%emt 0:05:21]} 25. h3 {[%emt 0:01:02]} Qf5 {[%emt 0:00:20]} 26. Qe2 {[%emt 0:03:49]} Qb5 {[%emt 0:01:42]} 27. Nc5 {[%emt 0:01:11]} Qxe2 {[%emt 0:00:58]} 28. Rxe2 {[%emt 0:00:04]} a5 {[%emt 0:00:54]} 29. Ne4 {[%emt 0:02:02]} Rd5 {[%emt 0:00:33]} 30. Bc5 {[%emt 0:01:00]} Red8 {[%emt 0:01:05]} 31. Rc3 {[%emt 0:01:18]} e5 {[%emt 0:01:39]} 32. Rg3 {[%emt 0:01:29]} Rd1+ {[%emt 0:00:33]} 33. Kh2 {[%emt 0:00:05]} Bf5 {[%emt 0:00:20]} 34. Nf6+ {[%emt 0:01:06]} Kf7 {[%emt 0:00:31]} 35. Ng4 {[%emt 0:00:07]} Bxg4 {[%emt 0:01:53]} 36. Rxg4 {[%emt 0:00:08]} R8d2 {[%emt 0:01:10]} 37. Rge4 {[%emt 0:00:11]} Kf6 {[%emt 0:02:21]} 38. f4 {[%emt 0:01:13]} Rxe2 {[%emt 0:00:56]} 39. fxe5+ {[%emt 0:00:08]} Nxe5 {[%emt 0:00:09]} 40. Rxe2 {[%emt 0:00:06]} Nc4 {[%emt 0:00:48]} 1/2-1/2

[Event "Irish New Year-IM 2022"]
[Site "Dublin"]
[Date "2022.01.05"]
[Round "7.7"]
[White "Mannion, Stephen R"]
[Black "O`Donnell, Conor"]
[Result "1/2-1/2"]
[ECO "C07"]
[WhiteElo "2267"]
[BlackElo "2310"]
[Annotator "NA"]
[PlyCount "44"]
[EventDate "2022.01.02"]
[EventType "tourn"]
[EventCountry "IRL"]
[SourceTitle "playchess.com"]
[Source "ChessBase"]
[SourceQuality "1"]
[TimeControl "5400+30"]

1. e4 {[%emt 0:00:02]} e6 {[%emt 0:00:05]} 2. d4 {[%emt 0:00:09]} d5 {[%emt 0:00:06]} 3. Nd2 {[%emt 0:00:11]} c5 {[%emt 0:00:05]} 4. exd5 {[%emt 0:00:13]} Qxd5 {[%emt 0:00:20]} 5. dxc5 {[%emt 0:00:10]} Qxc5 {[%emt 0:00:09]} 6. Ngf3 {[%emt 0:00:18]} Nf6 {[%emt 0:00:16]} 7. Bd3 {[%emt 0:01:35]} Be7 {[%emt 0:00:07]} 8. O-O {[%emt 0:00:24]} O-O {[%emt 0:00:07]} 9. Re1 {[%emt 0:07:33]} Nbd7 {[%emt 0:02:24]} 10. Qe2 {[%emt 0:07:14]} b6 {[%emt 0:15:25]} 11. Ne4 {[%emt 0:02:38]} Qc7 {[%emt 0:01:51]} 12. Bg5 {[%emt 0:02:41]} Bb7 {[%emt 0:01:23]} 13. Nxf6+ {[%emt 0:01:29]} Nxf6 {[%emt 0:07:33]} 14. Ne5 $11 {[%emt 0:00:59]} Rad8 {[%emt 0:07:43]} 15. Bh4 {[%emt 0:02:54]} Ba8 {[%emt 0:04:02]} 16. Bg3 {[%emt 0:23:18]} Qb7 {[%emt 0:56:54]} 17. Qf1 {[%emt 0:47:12]} Nh5 {[%emt 0:00:30]} 18. Ba6 {[%emt 0:00:30]} Qc7 {[%emt 0:00:30]} 19. Bd3 {[%emt 0:00:30]} Nf6 {[%emt 0:00:30]} 20. Qe2 Qb7 21. f4 {[%emt 0:01:00]} Rd4 {[%emt 0:01:00]} 22. c3 {[%emt 0:00:00]} Rdd8 {[%emt 0:00:00]} 1/2-1/2

[Event "Irish New Year-IM 2022"]
[Site "Dublin"]
[Date "2022.01.05"]
[Round "7.9"]
[White "Carroll, Peter"]
[Black "Urh, Zala"]
[Result "0-1"]
[ECO "B10"]
[WhiteElo "2139"]
[BlackElo "2291"]
[Annotator "NA"]
[PlyCount "47"]
[EventDate "2022.01.02"]
[EventType "tourn"]
[EventCountry "IRL"]
[SourceTitle "playchess.com"]
[Source "ChessBase"]
[SourceQuality "1"]
[TimeControl "5400+30"]

1. e4 {[%emt 0:00:06]} c6 {[%emt 0:08:38]} 2. Nf3 {[%emt 0:04:09]} d5 {[%emt 0:00:50]} 3. d3 {[%emt 0:00:06]} Bg4 {[%emt 0:08:25]} 4. Be2 {[%emt 0:03:23]} e6 {[%emt 0:05:21]} 5. h3 {[%emt 0:00:12]} Bh5 {[%emt 0:01:23]} 6. Nbd2 {[%emt 0:00:27]} Nf6 {[%emt 0:00:53]} 7. O-O {[%emt 0:01:08]} Be7 {[%emt 0:01:00]} 8. Re1 {[%emt 0:03:40]} O-O {[%emt 0:01:06]} 9. c3 {[%emt 0:00:06]} c5 {[%emt 0:01:42]} 10. exd5 {[%emt 0:02:04]} Nxd5 {[%emt 0:03:29]} 11. Ne4 {[%emt 0:01:07]} Nc6 $11 {[%emt 0:03:36]} 12. d4 {[%emt 0:14:37]} Bxf3 {[%emt 0:14:23]} 13. Bxf3 {[%emt 0:00:05]} cxd4 {[%emt 0:00:09]} 14. cxd4 {[%emt 0:00:12]} Bb4 {[%emt 0:00:42]} 15. Re2 {[%emt 0:01:14]} Qb6 {[%emt 0:00:22]} 16. a3 {[%emt 0:02:07]} Be7 {[%emt 0:01:36]} 17. Be3 {[%emt 0:01:19]} Rfd8 {[%emt 0:07:02]} 18. Nc3 {[%emt 0:05:10]} Nxe3 {[%emt 0:01:45]} 19. fxe3 {[%emt 0:00:06]} Nxd4 {[%emt 0:05:04]} 20. exd4 {[%emt 0:07:53]} Rxd4 {[%emt 0:00:14]} 21. Kh1 {[%emt 0:00:22]} Rxd1+ {[%emt 0:00:23]} 22. Rxd1 {[%emt 0:00:03]} Rd8 {[%emt 0:04:01]} 23. Red2 {[%emt 0:00:07]} Rxd2 {[%emt 0:00:45]} 24. Rxd2 {[%emt 0:00:01]} 0-1

[Event "Irish New Year-IM 2022"]
[Site "Dublin"]
[Date "2022.01.06"]
[Round "8.6"]
[White "Baker, Chris W"]
[Black "Daly, Colm"]
[Result "1-0"]
[ECO "A46"]
[WhiteElo "2227"]
[BlackElo "2285"]
[Annotator "ChessBase"]
[PlyCount "107"]
[EventDate "2022.01.02"]
[EventType "tourn"]
[EventCountry "IRL"]
[SourceTitle "playchess.com"]
[Source "ChessBase"]
[SourceQuality "1"]
[TimeControl "5400+30"]

1. d4 {[%emt 0:00:03]} Nf6 {[%emt 0:15:23]} 2. Nf3 {[%emt 0:01:01]} e6 {[%emt 0:00:18]} 3. g3 {[%emt 0:00:39]} b5 {[%emt 0:00:19]} 4. Bg2 {[%emt 0:01:05]} Bb7 {[%emt 0:00:07]} 5. O-O {[%emt 0:01:41]} Be7 {[%emt 0:00:10]} 6. a4 {[%emt 0:03:34]} a6 {[%emt 0:02:17]} 7. axb5 {[%emt 0:01:05]} axb5 {[%emt 0:00:02]} 8. Rxa8 {[%emt 0:00:18]} Bxa8 {[%emt 0:02:00]} 9. Qd3 {[%emt 0:01:15]} b4 {[%emt 0:06:02]} 10. Bg5 {[%emt 0:03:33]} O-O {[%emt 0:03:10]} 11. Nbd2 {[%emt 0:01:45]} d6 {[%emt 0:09:44]} 12. Ra1 {[%emt 0:01:54]} Nbd7 {[%emt 0:01:36]} 13. Qa6 {[%emt 0:06:38]} Bd5 {[%emt 0:02:12]} 14. Ne1 {[%emt 0:05:58]} Bxg2 {[%emt 0:00:38]} 15. Kxg2 {[%emt 0:00:16]} c5 {[%emt 0:01:14]} 16. Nd3 {[%emt 0:04:28]} Qc7 {[%emt 0:06:49]} 17. dxc5 {[%emt 0:04:12]} Nxc5 {[%emt 0:00:25]} 18. Qa7 {[%emt 0:00:25]} Qc6+ {[%emt 0:04:44]} 19. Nf3 {[%emt 0:00:57]} Nxd3 {[%emt 0:02:46]} 20. cxd3 {[%emt 0:07:08]} Re8 {[%emt 0:03:30]} 21. Rc1 {[%emt 0:00:50]} Qa8 {[%emt 0:00:36]} 22. Qxa8 {[%emt 0:04:03]} Rxa8 {[%emt 0:00:03]} 23. Rc7 {[%emt 0:00:13]} Bf8 {[%emt 0:05:48]} 24. Rb7 {[%emt 0:02:33]} d5 {[%emt 0:00:35]} 25. Ne5 {[%emt 0:01:37]} h6 {[%emt 0:07:20]} 26. Be3 {[%emt 0:03:21]} Rc8 {[%emt 0:06:17]} 27. Bd4 {[%emt 0:01:08]} Ne8 {[%emt 0:03:56]} 28. Nxf7 {[%emt 0:03:43]} Rc7 {[%emt 0:05:51]} 29. Nd8 {[%emt 0:01:47]} Rxb7 {[%emt 0:01:13]} 30. Nxb7 {[%emt 0:00:07]} Be7 {[%emt 0:02:17]} 31. Bc5 {[%emt 0:02:21]} Kf7 {[%emt 0:00:42]} 32. d4 {[%emt 0:01:41]} Nc7 {[%emt 0:00:46]} 33. Kf3 {[%emt 0:03:19]} Nb5 {[%emt 0:01:16]} 34. Ke3 {[%emt 0:00:50]} Bxc5 {[%emt 0:02:31]} 35. Nxc5 {[%emt 0:01:43]} Na7 {[%emt 0:01:08]} 36. Kd3 {[%emt 0:01:50]} Nc6 {[%emt 0:00:17]} 37. Nd7 {[%emt 0:02:27]} Ke7 {[%emt 0:00:14]} 38. Ne5 {[%emt 0:00:07]} Na5 {[%emt 0:00:10]} 39. Kc2 {[%emt 0:01:45]} Kf6 {[%emt 0:00:24]} 40. e3 {[%emt 0:02:21]} Kf5 {[%emt 0:00:16]} 41. Nd3 {[%emt 0:03:23]} b3+ {[%emt 0:02:13]} 42. Kc3 {[%emt 0:01:24]} Ke4 {[%emt 0:02:08]} 43. Ne5 {[%emt 0:00:15]} g5 {[%emt 0:00:55]} 44. g4 {[%emt 0:00:30]} Nc4 {[%emt 0:00:48]} 45. Nxc4 {[%emt 0:00:37]} dxc4 {[%emt 0:00:03]} 46. Kxc4 {[%emt 0:00:11]} Kf3 {[%emt 0:00:20]} 47. Kxb3 {[%emt 0:01:27]} Kxf2 {[%emt 0:01:24]} 48. e4 {[%emt 0:00:23]} Kf3 {[%emt 0:00:50]} 49. d5 {[%emt 0:00:09]} exd5 {[%emt 0:00:27]} 50. exd5 {[%emt 0:00:10]} Kxg4 {[%emt 0:00:20]} 51. d6 {[%emt 0:00:11]} Kh3 {[%emt 0:00:04]} 52. d7 {[%emt 0:00:36]} Kxh2 {[%emt 0:00:16]} 53. d8=Q {[%emt 0:00:07]} Kh3 {[%emt 0:00:20]} 54. Qf6 {[%emt 0:00:16]} 1-0